fUST/lending_fUST_20250101
["ID","MTS","AMOUNT","RATE_DAILY","PERIOD"]
[347307776,1735678243992,-526.068168,0.00019452,3]
[347307777,1735678244001,-500.0,0.00019452,3]
[347307778,1735678244011,-500.0,0.00019452,3]
[347307779,1735678244021,-861.64,0.00019452,3]
[347307780,1735678244031,-500.0,0.00019452,3]
[347307781,1735678244040,-151.0,0.00019452,2]
[347307782,1735678244049,-751.77,0.00019452,3]
[347307783,1735678244059,-500.0,0.00019452,3]
[347307784,1735678244068,-151.0,0.00019452,2]
[347307785,1735678244078,-500.0,0.00019452,3]
[347307786,1735678244087,-500.0,0.00019452,3]
[347307787,1735678244097,-1420.74,0.00019452,3]
[347307788,1735678244107,-754.45,0.00019452,3]
[347307789,1735678244116,-500.0,0.00019452,3]
[347307790,1735678244126,-330.95154393,0.00019452,3]
[347307791,1735678244135,-623.88,0.00019452,3]
[347307792,1735678244145,-1726.52,0.00019452,3]
[347307793,1735678244154,-500.0,0.00019452,3]
[347307794,1735678244164,-500.0,0.00019452,3]
[347307795,1735678244173,-151.0,0.00019452,2]
[347307796,1735678244182,-151.0,0.00019452,2]
[347307797,1735678244191,-151.0,0.00019452,2]
[347307798,1735678244202,-151.0,0.00019452,2]
[347307799,1735678244211,-1078.31,0.00019452,3]
[347307800,1735678244220,-500.0,0.00019452,3]
[347307801,1735678244232,-500.0,0.00019452,3]
[347307802,1735678244243,-1826.49,0.00019452,3]
[347307803,1735678244253,-961.81,0.00019452,3]
[347307804,1735678244262,-151.0,0.00019452,2]
[347307805,1735678244272,-500.0,0.00019452,3]
[347307806,1735678244282,-151.0,0.00019452,2]
[347307807,1735678244292,-168.228658,0.00019452,2]
[347307808,1735678244301,-500.0,0.00019452,3]
[347307809,1735678244312,-1477.71,0.00019452,3]
[347307810,1735678244321,-756.61,0.00019452,3]
[347307811,1735678244330,-500.0,0.00019452,3]
[347307812,1735678244340,-500.0,0.00019452,3]
[347307813,1735678244349,-915.66,0.00019452,3]
[347307814,1735678244358,-500.0,0.00019452,3]
[347307815,1735678244367,-325.951123,0.00019452,2]
[347307816,1735678244376,-325.951123,0.00019452,2]
[347307817,1735678244386,-325.951123,0.00019452,2]
[347307818,1735678244395,-500.0,0.00019452,3]
[347307819,1735678244405,-500.0,0.00019452,3]
[347307820,1735678244414,-325.951123,0.00019452,2]
[347307821,1735678244423,-325.951123,0.00019452,2]
[347307822,1735678244433,-325.951123,0.00019452,2]
[347307823,1735678244442,-1016.18,0.00019452,3]
[347307824,1735678244451,-557.74,0.00019452,3]
[347307825,1735678244460,-500.0,0.00019452,3]
[347307826,1735678244470,-500.0,0.00019452,3]
[347307827,1735678244480,-500.0,0.00019452,3]
[347307828,1735678244489,-1182.84,0.00019452,3]
[347307829,1735678244498,-5516.38,0.00019452,3]
[347307830,1735678244507,-885.37,0.00019452,3]
[347307831,1735678244516,-2423.86,0.00019452,3]
[347307832,1735678244526,-500.0,0.00019452,3]
[347307833,1735678244535,-500.0,0.00019452,3]
[347307834,1735678244546,-500.0,0.00019452,3]
[347307835,1735678244555,-689.76,0.00019452,3]
[347307836,1735678244564,-500.0,0.00019452,3]
[347307837,1735678244574,-500.0,0.00019452,3]
[347307838,1735678244584,-500.0,0.00019452,3]
[347307839,1735678244593,-956.62,0.00019452,3]
[347307840,1735678244602,-1014.13,0.00019452,3]
[347307841,1735678244612,-503.42,0.00019452,3]
[347307842,1735678244621,-340.834427,0.00019452,2]
[347307843,1735678244631,-500.0,0.00019452,3]
[347307844,1735678244640,-340.834427,0.00019452,2]
[347307845,1735678244649,-340.834427,0.00019452,2]
[347307846,1735678244659,-340.834427,0.00019452,2]
[347307847,1735678244669,-340.834427,0.00019452,2]
[347307848,1735678244678,-340.834427,0.00019452,2]
[347307849,1735678244687,-340.834427,0.00019452,2]
[347307850,1735678244697,-340.834427,0.00019452,2]
[347307851,1735678244710,-500.0,0.00019452,3]
[347307852,1735678244719,-845.91,0.00019452,3]
[347307853,1735678244730,-39769.65,0.00019452,3]
[347307854,1735678244740,-500.0,0.00019452,3]
[347307855,1735678244749,-500.0,0.00019452,3]
[347307856,1735678244759,-500.0,0.00019452,3]
[347307857,1735678244769,-522.63493138,0.00019452,3]
[347307858,1735678244778,-500.0,0.00019452,3]
[347307859,1735678244787,-500.0,0.00019452,3]
[347307860,1735678244797,-1237.87,0.00019452,3]
[347307861,1735678244806,-596.25,0.00019452,3]
[347307862,1735678244816,-8730.31,0.00019452,3]
[347307863,1735678244825,-500.0,0.00019452,3]
[347307864,1735678244834,-1324.32,0.00019452,3]
[347307865,1735678244843,-565.9,0.00019452,3]
[347307866,1735678244853,-1582.67,0.00019452,3]
[347307867,1735678244863,-624.44,0.00019452,3]
[347307868,1735678244872,-791.96,0.00019452,3]
[347307869,1735678244882,-500.0,0.00019452,3]
[347307870,1735678244892,-500.0,0.00019452,3]
[347307871,1735678244901,-920.06,0.00019452,3]
[347307872,1735678244910,-500.0,0.00019452,3]
[347307873,1735678244920,-151.0,0.00019452,2]
[347307874,1735678244929,-4235.09,0.00019452,3]
[347307875,1735678244938,-500.0,0.00019452,3]
[347307876,1735678244948,-227.75744946,0.00019452,3]
[347307877,1735678244957,-826.6,0.00019452,3]
[347307878,1735678244966,-561.1,0.00019452,3]
[347307879,1735678244975,-931.37,0.00019452,3]
[347307880,1735678244984,-730.16,0.00019452,3]
[347307881,1735678244993,-500.0,0.00019452,3]
[347307882,1735678245002,-500.0,0.00019452,3]
[347307883,1735678245011,-833.34,0.00019452,3]
[347307884,1735678245021,-3286.87,0.00019452,3]
[347307885,1735678245030,-431.13986091,0.00019452,3]
[347307886,1735678245038,-521.87272712,0.00019452,3]
[347307887,1735678245047,-2057.98,0.00019452,3]
[347307888,1735678245056,-500.0,0.00019452,3]
[347307889,1735678245066,-2074.92,0.00019452,3]
[347307890,1735678245075,-614.34,0.00019452,3]
[347307891,1735678245086,-500.0,0.00019452,3]
[347307892,1735678245095,-500.0,0.00019452,3]
[347307893,1735678245104,-500.0,0.00019452,3]
[347307894,1735678245112,-153.1686384,0.00019452,3]
[347307895,1735678245121,-500.0,0.00019452,3]
[347307896,1735678245130,-500.0,0.00019452,3]
[347307897,1735678245139,-151.0,0.00019452,2]
[347307898,1735678245148,-500.0,0.00019452,3]
[347307899,1735678245157,-500.0,0.00019452,3]
[347307900,1735678245166,-1547.95,0.00019452,3]
[347307901,1735678245175,-495.488641,0.00019452,2]
[347307902,1735678245184,-495.488641,0.00019452,2]
[347307903,1735678245192,-495.488641,0.00019452,2]
[347307904,1735678245202,-681.59,0.00019452,3]
[347307905,1735678245210,-495.488641,0.00019452,2]
[347307906,1735678245219,-205.18104735,0.0001946,2]
[347307907,1735678245230,-500.0,0.00019473,2]
[347307908,1735678245241,-591.1500468,0.00019528,2]
[347307909,1735678245250,-314.86616198,0.00019608,2]
[347307910,1735678245259,-427.87814357,0.00019626,2]
[347307911,1735678245268,-1000.0,0.000197,2]
[347307912,1735678245278,-440.0,0.0001972,2]
[347307913,1735678245287,-1143.25929191,0.00019721,2]
[347307914,1735678245296,-209.7490868,0.00019725,2]
[347307915,1735678245307,-441.11299096,0.00019725,2]
[347307916,1735678245316,-151.0,0.00019726,2]
[347307917,1735678245326,-221.044916,0.00019726,2]
[347307918,1735678245334,-151.0,0.00019726,2]
[347307919,1735678245343,-151.0,0.00019726,2]
[347307920,1735678245352,-151.0,0.00019726,2]
[347307921,1735678245361,-151.0,0.00019726,2]
[347307922,1735678245370,-500.0,0.00019726,3]
[347307923,1735678245379,-155.922169,0.00019726,2]
[347307924,1735678245388,-155.922169,0.00019726,2]
[347307925,1735678245397,-155.922169,0.00019726,2]
[347307926,1735678245407,-155.922169,0.00019726,2]
[347307927,1735678245416,-500.0,0.00019726,3]
[347307930,1735678245522,-6249.95,0.00019726,3]
[347307931,1735678245533,-500.0,0.00019726,3]
[347307932,1735678245542,-193.183239,0.00019726,2]
[347307934,1735678245552,-193.183239,0.00019726,2]
[347307936,1735678245561,-193.183239,0.00019726,2]
[347307937,1735678245571,-193.183239,0.00019726,2]
[347307938,1735678245579,-644.5,0.00019726,3]
[347307939,1735678245588,-500.0,0.00019726,3]
[347307940,1735678245598,-571.64537705,0.00019726,3]
[347307941,1735678245606,-151.0,0.00019726,2]
[347307943,1735678245615,-151.0,0.00019726,2]
[347307945,1735678245625,-176.485778,0.00019726,2]
[347307947,1735678245634,-176.485778,0.00019726,2]
[347307949,1735678245643,-571.77,0.00019726,3]
[347307951,1735678245653,-176.485778,0.00019726,2]
[347307953,1735678245662,-176.485778,0.00019726,2]
[347307954,1735678245671,-500.0,0.00019726,3]
[347307955,1735678245680,-151.0,0.00019726,2]
[347307956,1735678245689,-151.0,0.00019726,2]
[347307957,1735678245699,-2896.96,0.00019726,3]
[347307958,1735678245708,-151.0,0.00019726,2]
[347307959,1735678245717,-151.0,0.00019726,2]
[347307960,1735678245727,-500.0,0.00019726,3]
[347307961,1735678245736,-500.0,0.00019726,3]
[347307962,1735678245745,-500.0,0.00019726,3]
[347307963,1735678245754,-500.0,0.00019726,3]
[347307964,1735678245763,-688.46,0.00019726,3]
[347307965,1735678245772,-1078.54,0.00019726,3]
[347307966,1735678245782,-500.0,0.00019726,3]
[347307967,1735678245791,-850.23,0.00019726,3]
[347307968,1735678245801,-151.0,0.00019726,2]
[347307969,1735678245810,-151.0,0.00019726,2]
[347307970,1735678245820,-530.74,0.00019726,3]
[347307971,1735678245829,-500.0,0.00019726,3]
[347307972,1735678245839,-151.0,0.00019726,2]
[347307973,1735678245848,-151.0,0.00019726,2]
[347307974,1735678245857,-500.0,0.00019726,3]
[347307975,1735678245866,-500.0,0.00019726,3]
[347307976,1735678245876,-500.0,0.00019726,3]
[347307977,1735678245885,-500.0,0.00019726,3]
[347307978,1735678245894,-757.79,0.00019726,3]
[347307979,1735678245903,-313.136126,0.00019726,2]
[347307980,1735678245913,-313.136126,0.00019726,2]
[347307981,1735678245923,-313.136126,0.00019726,2]
[347307982,1735678245932,-500.0,0.00019726,3]
[347307983,1735678245941,-595.35,0.00019726,3]
[347307984,1735678245951,-313.136126,0.00019726,2]
[347307985,1735678245962,-313.136126,0.00019726,2]
[347307986,1735678245972,-313.136126,0.00019726,2]
[347307987,1735678245981,-544.41,0.00019726,3]
[347307988,1735678245996,-500.0,0.00019726,3]
[347307989,1735678246005,-4774.75,0.00019726,3]
[347307990,1735678246015,-500.0,0.00019726,3]
[347307991,1735678246024,-600.4,0.00019726,3]
[347307992,1735678246034,-500.0,0.00019726,2]
[347307993,1735678246043,-151.0,0.00019726,2]
[347307994,1735678246052,-151.0,0.00019726,2]
[347307995,1735678246062,-500.0,0.00019726,3]
[347307996,1735678246071,-500.0,0.00019726,3]
[347307997,1735678246081,-169.592575,0.00019726,2]
[347307998,1735678246091,-169.592575,0.00019726,2]
[347307999,1735678246100,-169.592575,0.00019726,2]
[347308000,1735678246109,-169.592575,0.00019726,2]
[347308001,1735678246119,-8527.29,0.00019726,3]
[347308002,1735678246128,-603.55,0.00019726,3]
[347308003,1735678246138,-500.0,0.00019726,3]
[347308004,1735678246147,-500.0,0.00019726,3]
[347308005,1735678246156,-500.0,0.00019726,3]
[347308007,1735678246166,-500.0,0.00019726,3]
[347308008,1735678246176,-500.0,0.00019726,3]
[347308009,1735678246185,-417.86628437,0.00019726,3]
[347308011,1735678246194,-501.55057105,0.00019726,3]
[347308013,1735678246203,-500.0,0.00019726,3]
[347308015,1735678246212,-500.0,0.00019726,3]
[347308017,1735678246221,-906.38,0.00019726,3]
[347308019,1735678246233,-1482.09,0.00019726,3]
[347308020,1735678246243,-1317.71,0.00019726,3]
[347308021,1735678246253,-500.0,0.00019726,3]
[347308022,1735678246262,-750.06,0.00019726,3]
[347308023,1735678246272,-275.501114,0.00019726,2]
[347308024,1735678246282,-275.501114,0.00019726,2]
[347308025,1735678246292,-275.501114,0.00019726,2]
[347308026,1735678246301,-275.501114,0.00019726,2]
[347308027,1735678246310,-500.0,0.00019726,3]
[347308028,1735678246319,-597.87,0.00019726,3]
[347308029,1735678246329,-1068.79,0.00019726,3]
[347308030,1735678246338,-500.0,0.00019726,3]
[347308031,1735678246347,-500.0,0.00019726,3]
[347308032,1735678246356,-500.0,0.00019726,3]
[347308033,1735678246365,-500.0,0.00019726,3]
[347308034,1735678246374,-320.523425,0.00019726,2]
[347308035,1735678246384,-320.523425,0.00019726,2]
[347308036,1735678246393,-320.523425,0.00019726,2]
[347308037,1735678246403,-500.0,0.00019726,3]
[347308039,1735678246412,-320.523425,0.00019726,2]
[347308040,1735678246421,-320.523425,0.00019726,2]
[347308041,1735678246430,-320.523425,0.00019726,2]
[347308042,1735678246439,-1061.03,0.00019726,3]
[347308043,1735678246448,-713.17,0.00019726,3]
[347308044,1735678246461,-723.8,0.00019726,3]
[347308045,1735678246470,-500.0,0.00019726,3]
[347308046,1735678246479,-735.12,0.00019726,3]
[347308047,1735678246489,-500.0,0.00019726,3]
[347308049,1735678246499,-323.214034,0.00019726,2]
[347308050,1735678246508,-323.214034,0.00019726,2]
[347308051,1735678246517,-500.0,0.00019726,3]
[347308052,1735678246526,-323.214034,0.00019726,2]
[347308053,1735678246536,-323.214034,0.00019726,2]
[347308054,1735678246545,-315.88,0.00019726,3]
[347308055,1735678246555,-500.0,0.00019726,3]
[347308056,1735678246564,-687.313315,0.00019726,2]
[347308057,1735678246573,-687.313315,0.00019726,2]
[347308058,1735678246582,-687.313315,0.00019726,2]
[347308059,1735678246592,-687.313315,0.00019726,2]
[347308060,1735678246601,-687.313315,0.00019726,2]
[347308061,1735678246610,-687.313315,0.00019726,2]
[347308062,1735678246620,-500.0,0.00019726,3]
[347308063,1735678246632,-500.0,0.00019726,3]
[347308064,1735678246640,-637.88,0.00019726,3]
[347308065,1735678246650,-500.0,0.00019726,3]
[347308066,1735678246659,-609.1,0.00019726,3]
[347308067,1735678246669,-500.0,0.00019726,3]
[347308068,1735678246679,-543.12060661,0.00019726,3]
[347308069,1735678246689,-500.0,0.00019726,3]
[347308070,1735678246698,-500.0,0.00019726,3]
[347308071,1735678246708,-1419.68,0.00019726,3]
[347308072,1735678246718,-799.98,0.00019726,3]
[347308073,1735678246727,-500.0,0.00019726,3]
[347308074,1735678246737,-500.0,0.00019726,3]
[347308075,1735678246746,-500.0,0.00019726,3]
[347308076,1735678246755,-2901.12,0.00019726,3]
[347308077,1735678246764,-709.03,0.00019726,3]
[347308078,1735678246773,-500.0,0.00019726,3]
[347308079,1735678246783,-500.0,0.00019726,3]
[347308080,1735678246792,-731.78,0.00019726,3]
[347308081,1735678246801,-500.0,0.00019726,3]
[347308082,1735678246810,-500.0,0.00019726,3]
[347308083,1735678246819,-861.64,0.00019726,3]
[347308084,1735678246829,-500.0,0.00019726,3]
[347308085,1735678246838,-751.77,0.00019726,3]
[347308086,1735678246847,-500.0,0.00019726,3]
[347308087,1735678246857,-500.0,0.00019726,3]
[347308088,1735678246866,-500.0,0.00019726,3]
[347308089,1735678246875,-1420.74,0.00019726,3]
[347308090,1735678246884,-754.45,0.00019726,3]
[347308091,1735678246893,-623.88,0.00019726,3]
[347308092,1735678246903,-1726.52,0.00019726,3]
[347308093,1735678246914,-500.0,0.00019726,3]
[347308094,1735678246923,-500.0,0.00019726,3]
[347308095,1735678246932,-1078.31,0.00019726,3]
[347308096,1735678246942,-500.0,0.00019726,3]
[347308097,1735678246952,-296.06035818,0.00019726,3]
[347308098,1735678246961,-1826.49,0.00019726,3]
[347308099,1735678246972,-961.81,0.00019726,3]
[347308100,1735678246982,-500.0,0.00019726,3]
[347308101,1735678246990,-500.0,0.00019726,3]
[347308102,1735678246999,-1477.71,0.00019726,3]
[347308103,1735678247008,-756.61,0.00019726,3]
[347308104,1735678247017,-500.0,0.00019726,3]
[347308105,1735678247026,-500.0,0.00019726,3]
[347308106,1735678247036,-915.66,0.00019726,3]
[347308107,1735678247045,-500.0,0.00019726,3]
[347308108,1735678247054,-325.951123,0.00019726,2]
[347308109,1735678247063,-325.951123,0.00019726,2]
[347308110,1735678247072,-325.951123,0.00019726,2]
[347308111,1735678247081,-500.0,0.00019726,3]
[347308112,1735678247090,-500.0,0.00019726,3]
[347308113,1735678247099,-325.951123,0.00019726,2]
[347308114,1735678247108,-325.951123,0.00019726,2]
[347308115,1735678247117,-1016.18,0.00019726,3]
[347308116,1735678247125,-325.951123,0.00019726,2]
[347308117,1735678247135,-557.74,0.00019726,3]
[347308118,1735678247145,-480.93022324,0.00019726,3]
[347308119,1735678247154,-500.0,0.00019726,3]
[347308120,1735678247165,-1182.84,0.00019726,3]
[347308121,1735678247175,-5516.38,0.00019726,3]
[347308122,1735678247185,-885.37,0.00019726,3]
[347308123,1735678247194,-2423.86,0.00019726,3]
[347308124,1735678247203,-500.0,0.00019726,3]
[347308125,1735678247213,-500.0,0.00019726,3]
[347308126,1735678247222,-689.76,0.00019726,3]
[347308127,1735678247235,-500.0,0.00019726,3]
[347308128,1735678247245,-500.0,0.00019726,3]
[347308129,1735678247255,-504.19019405,0.00019726,3]
[347308130,1735678247264,-1014.13,0.00019726,3]
[347308131,1735678247274,-956.62,0.00019726,3]
[347308132,1735678247283,-503.42,0.00019726,3]
[347308133,1735678247292,-569.88788877,0.00019726,3]
[347308134,1735678247303,-340.834427,0.00019726,2]
[347308135,1735678247313,-340.834427,0.00019726,2]
[347308136,1735678247323,-340.834427,0.00019726,2]
[347308137,1735678247332,-340.834427,0.00019726,2]
[347308138,1735678247342,-340.834427,0.00019726,2]
[347308139,1735678247351,-340.834427,0.00019726,2]
[347308140,1735678247360,-500.0,0.00019726,3]
[347308141,1735678247369,-845.91,0.00019726,3]
[347308142,1735678247379,-39769.65,0.00019726,3]
[347308143,1735678247388,-500.0,0.00019726,3]
[347308144,1735678247398,-500.0,0.00019726,3]
[347308145,1735678247407,-500.0,0.00019726,3]
[347308146,1735678247416,-500.0,0.00019726,3]
[347308147,1735678247425,-503.17145217,0.00019726,3]
[347308148,1735678247434,-1237.87,0.00019726,3]
[347308149,1735678247443,-596.25,0.00019726,3]
[347308150,1735678247452,-8730.31,0.00019726,3]
[347308151,1735678247461,-500.0,0.00019726,3]
[347308152,1735678247470,-1324.32,0.00019726,3]
[347308153,1735678247479,-565.9,0.00019726,3]
[347308154,1735678247489,-1582.67,0.00019726,3]
[347308155,1735678247499,-624.44,0.00019726,3]
[347308156,1735678247508,-791.96,0.00019726,3]
[347308157,1735678247518,-500.0,0.00019726,3]
[347308158,1735678247527,-920.06,0.00019726,3]
[347308159,1735678247537,-500.0,0.00019726,3]
[347308160,1735678247635,-4235.09,0.00019726,3]
[347308161,1735678247645,-500.0,0.00019726,3]
[347308162,1735678247654,-826.6,0.00019726,3]
[347308163,1735678247663,-561.1,0.00019726,3]
[347308164,1735678247673,-931.37,0.00019726,3]
[347308165,1735678247682,-730.16,0.00019726,3]
[347308166,1735678247691,-500.0,0.00019726,3]
[347308167,1735678247701,-500.0,0.00019726,3]
[347308168,1735678247710,-833.34,0.00019726,3]
[347308169,1735678247719,-3286.87,0.00019726,3]
[347308170,1735678247729,-2057.98,0.00019726,3]
[347308171,1735678247738,-440.83639766,0.00019726,3]
[347308172,1735678247747,-2074.92,0.00019726,3]
[347308173,1735678247756,-614.34,0.00019726,3]
[347308174,1735678247766,-500.0,0.00019726,3]
[347308175,1735678247775,-500.0,0.00019726,3]
[347308176,1735678247785,-500.0,0.00019726,3]
[347308177,1735678247794,-500.0,0.00019726,3]
[347308178,1735678247803,-500.0,0.00019726,3]
[347308179,1735678247812,-504.2176625,0.00019726,3]
[347308180,1735678247821,-500.0,0.00019726,3]
[347308181,1735678247830,-1547.95,0.00019726,3]
[347308182,1735678247839,-681.59,0.00019726,3]
[347308183,1735678247848,-495.488641,0.00019726,2]
[347308184,1735678247857,-495.488641,0.00019726,2]
[347308185,1735678247867,-495.488641,0.00019726,2]
[347308186,1735678247878,-500.0,0.00019773,2]
[347308187,1735678247888,-314.86616198,0.00019785,2]
[347308188,1735678247897,-150.0,0.000198,2]
[347308189,1735678247907,-618.0,0.000198,2]
[347308190,1735678247916,-420.0,0.00019828,2]
[347308191,1735678247925,-427.87814357,0.00019899,2]
[347308192,1735678247935,-205.18104735,0.00019953,2]
[347308193,1735678247943,-314.86616198,0.00019962,2]
[347308194,1735678247954,-313.136126,0.00019973,2]
[347308195,1735678247963,-313.136126,0.00019973,2]
[347308196,1735678247973,-275.501114,0.00019973,2]
[347308197,1735678247982,-275.501114,0.00019973,2]
[347308198,1735678247991,-323.214034,0.00019973,2]
[347308199,1735678248000,-323.214034,0.00019973,2]
[347308200,1735678248009,-180.69763039,0.00019999,2]
[347308201,1735678248019,-3000.13427659,0.0002,2]
[347308202,1735678248028,-5172.1913679,0.0002,2]
[347308203,1735678248037,-151.0,0.0002,2]
[347308204,1735678248046,-151.0,0.0002,2]
[347308205,1735678248055,-151.0,0.0002,2]
[347308206,1735678248065,-151.0,0.0002,2]
[347308207,1735678248074,-151.0,0.0002,2]
[347308208,1735678248083,-151.0,0.0002,2]
[347308209,1735678248092,-151.0,0.0002,2]
[347308210,1735678248101,-151.0,0.0002,2]
[347308211,1735678248110,-151.0,0.0002,2]
[347308212,1735678248120,-347.868796,0.0002,2]
[347308213,1735678248128,-347.868796,0.0002,2]
[347308214,1735678248138,-347.868796,0.0002,2]
[347308215,1735678248147,-151.0,0.0002,2]
[347308216,1735678248156,-347.868796,0.0002,2]
[347308217,1735678248165,-151.0,0.0002,2]
[347308218,1735678248175,-347.868796,0.0002,2]
[347308219,1735678248184,-347.868796,0.0002,2]
[347308220,1735678248193,-151.0,0.0002,2]
[347308221,1735678248202,-500.0,0.0002,3]
[347308222,1735678248211,-278.04075783,0.0002,3]
[347308223,1735678248221,-155.922169,0.0002,2]
[347308224,1735678248230,-155.922169,0.0002,2]
[347308225,1735678248243,-155.922169,0.0002,2]
[347308226,1735678248252,-155.922169,0.0002,2]
[347308227,1735678248261,-155.922169,0.0002,2]
[347308228,1735678248271,-155.922169,0.0002,2]
[347308229,1735678248281,-151.0,0.0002,2]
[347308230,1735678248290,-6249.95,0.0002,3]
[347308231,1735678248299,-500.0,0.0002,3]
[347308232,1735678248310,-193.183239,0.0002,2]
[347308233,1735678248319,-193.183239,0.0002,2]
[347308234,1735678248328,-193.183239,0.0002,2]
[347308235,1735678248337,-193.183239,0.0002,2]
[347308236,1735678248347,-193.183239,0.0002,2]
[347308237,1735678248356,-193.183239,0.0002,2]
[347308238,1735678248365,-500.0,0.0002,3]
[347308239,1735678248374,-151.0,0.0002,2]
[347308240,1735678248383,-151.0,0.0002,2]
[347308241,1735678248392,-288.088134,0.0002,2]
[347308242,1735678248401,-176.485778,0.0002,2]
[347308243,1735678248410,-176.485778,0.0002,2]
[347308244,1735678248419,-176.485778,0.0002,2]
[347308245,1735678248427,-571.77,0.0002,3]
[347308246,1735678248437,-176.485778,0.0002,2]
[347308247,1735678248446,-176.485778,0.0002,2]
[347308248,1735678248455,-176.485778,0.0002,2]
[347308249,1735678248464,-500.0,0.0002,3]
[347308250,1735678248473,-151.0,0.0002,2]
[347308251,1735678248482,-151.0,0.0002,2]
[347308252,1735678248491,-151.0,0.0002,2]
[347308253,1735678248500,-253.781084,0.0002,2]
[347308254,1735678248510,-2896.96,0.0002,3]
[347308255,1735678248519,-500.0,0.0002,3]
[347308256,1735678248528,-500.0,0.0002,3]
[347308257,1735678248537,-164.730858,0.0002,2]
[347308258,1735678248547,-164.730858,0.0002,2]
[347308259,1735678248556,-500.0,0.0002,3]
[347308260,1735678248565,-500.0,0.0002,3]
[347308261,1735678248574,-688.46,0.0002,3]
[347308262,1735678248584,-1078.54,0.0002,3]
[347308263,1735678248593,-155.98252225,0.0002,3]
[347308264,1735678248602,-850.23,0.0002,3]
[347308265,1735678248612,-530.74,0.0002,3]
[347308266,1735678248621,-151.0,0.0002,2]
[347308267,1735678248629,-500.0,0.0002,3]
[347308268,1735678248639,-151.0,0.0002,2]
[347308269,1735678248648,-221.957199,0.0002,2]
[347308270,1735678248657,-500.0,0.0002,3]
[347308271,1735678248666,-500.0,0.0002,3]
[347308272,1735678248675,-757.79,0.0002,3]
[347308273,1735678248685,-313.136126,0.0002,2]
[347308274,1735678248694,-500.0,0.0002,3]
[347308275,1735678248703,-313.136126,0.0002,2]
[347308276,1735678248714,-313.136126,0.0002,2]
[347308277,1735678248723,-595.35,0.0002,3]
[347308278,1735678248735,-313.136126,0.0002,2]
[347308279,1735678248744,-313.136126,0.0002,2]
[347308280,1735678248754,-544.41,0.0002,3]
[347308281,1735678248763,-313.136132,0.0002,2]
[347308282,1735678248773,-500.0,0.0002,3]
[347308283,1735678248782,-4774.75,0.0002,3]
[347308284,1735678248791,-500.0,0.0002,3]
[347308285,1735678248801,-600.4,0.0002,3]
[347308286,1735678248810,-500.0,0.0002,2]
[347308287,1735678248818,-151.0,0.0002,2]
[347308288,1735678248827,-151.0,0.0002,2]
[347308289,1735678248837,-500.0,0.0002,3]
[347308290,1735678248846,-151.0,0.0002,2]
[347308291,1735678248855,-151.0,0.0002,2]
[347308292,1735678248865,-500.0,0.0002,3]
[347308293,1735678248874,-169.592575,0.0002,2]